[Event "Czech Open Rapid G1 2024"]
[Site "Pardubice"]
[Date "2024.07.18"]
[Round "6.20"]
[White "Karpinets, Andrian"]
[Black "Bouska, Jiri"]
[Result "0-1"]
[Annotator "RC"]
[ECO "B67"]
[WhiteElo "1759"]
[BlackElo "2222"]
[PlyCount "68"]
[EventDate "2024.07.16"]
[EventType "swiss"]
[EventCountry "CZE"]
[SourceTitle "playchess.com"]
[Source "ChessBase"]
[SourceQuality "1"]
[TimeControl "1200+10"]

1. e4 {[%emt 0:00:01]} c5 {[%emt 0:00:05]} 2. Nf3 {[%emt 0:00:03]} Nc6 {[%emt 0:00:02]} 3. d4 {[%emt 0:00:01]} cxd4 4. Nxd4 {[%emt 0:00:01]} Nf6 {[%emt 0:00:02]} 5. Nc3 {[%emt 0:00:01]} d6 {[%emt 0:00:01]} 6. Bg5 {[%emt 0:00:08]} Bd7 {[%emt 0:00:02]} 7. Qd2 {[%emt 0:00:29]} a6 {[%emt 0:00:01]} 8. f4 {[%emt 0:00:13]} e6 {[%emt 0:00:19]} 9. O-O-O {[%emt 0:00:30]} b5 {[%emt 0:00:10]} 10. e5 {[%emt 0:07:35]} dxe5 {[%emt 0:00:33]} 11. Nxc6 {[%emt 0:00:04]} Bxc6 {[%emt 0:00:05]} 12. fxe5 {[%emt 0:00:38]} Qxd2+ {[%emt 0:00:20]} 13. Rxd2 {[%emt 0:00:01]} Nd7 {[%emt 0:00:29]} 14. Bf4 {[%emt 0:00:26]} Be7 {[%emt 0:00:51]} 15. h4 {[%emt 0:01:21]} O-O-O {[%emt 0:01:07]} 16. h5 {[%emt 0:00:22]} Nc5 {[%emt 0:00:32]} 17. Rxd8+ {[%emt 0:00:51]} Rxd8 {[%emt 0:00:02]} 18. Rh3 {[%emt 0:00:37]} b4 {[%emt 0:03:05]} 19. Nd1 {[%emt 0:00:31]} a5 {[%emt 0:00:34]} 20. Ne3 {[%emt 0:03:55]} Rd4 {[%emt 0:01:44]} 21. Bh2 {[%emt 0:00:09]} Bg5 {[%emt 0:00:11]} 22. c3 {[%emt 0:00:50]} bxc3 {[%emt 0:05:26]} 23. bxc3 {[%emt 0:00:01]} Re4 {[%emt 0:00:21]} 24. Kd2 {[%emt 0:00:17]} Ra4 {[%emt 0:01:21]} 25. Ke1 {[%emt 0:00:49]} Rxa2 {[%emt 0:00:54]} 26. Bc4 {[%emt 0:03:23]} Ra1+ {[%emt 0:00:24]} 27. Ke2 {[%emt 0:00:01]} Ne4 {[%emt 0:00:38]} 28. Ba6+ {[%emt 0:00:57]} Kc7 {[%emt 0:00:49]} 29. Nc4 {[%emt 0:00:01]} Ra2+ {[%emt 0:00:37]} 30. Kf1 {[%emt 0:00:16]} Nc5 {[%emt 0:00:06]} 31. Rg3 {[%emt 0:00:31]} h6 {[%emt 0:00:12]} 32. Bg1 {[%emt 0:00:11]} Ra1+ {[%emt 0:00:10]} 33. Kf2 {[%emt 0:00:13]} Ne4+ {[%emt 0:00:14]} 34. Ke2 {[%emt 0:00:09]} Nxg3+ {[%emt 0:00:03]} 0-1

[Event "Czech Open Rapid G1 2024"]
[Site "Pardubice"]
[Date "2024.07.18"]
[Round "6.21"]
[White "Hosticka, Frantisek"]
[Black "Kastner, Oldrich"]
[Result "1-0"]
[Annotator "RC"]
[ECO "C02"]
[WhiteElo "2062"]
[BlackElo "2004"]
[PlyCount "57"]
[EventDate "2024.07.16"]
[EventType "swiss"]
[EventCountry "CZE"]
[SourceTitle "playchess.com"]
[Source "ChessBase"]
[SourceQuality "1"]
[TimeControl "1200+10"]

1. e4 {[%emt 0:00:01]} e6 {[%emt 0:00:14]} 2. d4 {[%emt 0:00:05]} d5 {[%emt 0:00:01]} 3. e5 {[%emt 0:00:01]} c5 {[%emt 0:00:03]} 4. c3 {[%emt 0:00:00]} Nc6 {[%emt 0:00:11]} 5. Be3 {[%emt 0:00:02]} Qb6 {[%emt 0:00:23]} 6. Qd2 {[%emt 0:00:04]} Bd7 {[%emt 0:01:34]} 7. Nf3 {[%emt 0:00:13]} Rc8 {[%emt 0:00:18]} 8. dxc5 {[%emt 0:00:33]} Bxc5 {[%emt 0:00:05]} 9. Bxc5 {[%emt 0:00:08]} Qxc5 {[%emt 0:00:02]} 10. Na3 {[%emt 0:00:40]} Nge7 {[%emt 0:00:32]} 11. Bd3 {[%emt 0:01:25]} Ng6 {[%emt 0:00:22]} 12. Bxg6 {[%emt 0:00:11]} hxg6 {[%emt 0:00:03]} 13. O-O {[%emt 0:00:20]} Rh5 {[%emt 0:00:57]} 14. Rfe1 {[%emt 0:00:07]} Ke7 {[%emt 0:01:54]} 15. Nc2 {[%emt 0:07:43]} Rch8 {[%emt 0:01:54]} 16. Ncd4 {[%emt 0:00:34]} Qb6 {[%emt 0:00:36]} 17. b4 {[%emt 0:03:07]} a6 {[%emt 0:00:16]} 18. a4 {[%emt 0:00:27]} Qc7 {[%emt 0:00:22]} 19. Qf4 {[%emt 0:01:07]} Be8 {[%emt 0:03:14]} 20. g4 {[%emt 0:01:37]} Rh3 {[%emt 0:00:51]} 21. Kg2 {[%emt 0:01:14]} Na7 {[%emt 0:02:57]} 22. Rec1 {[%emt 0:02:17]} Qc4 {[%emt 0:00:27]} 23. Qg5+ {[%emt 0:00:38]} f6 {[%emt 0:02:08]} 24. exf6+ {[%emt 0:00:08]} gxf6 {[%emt 0:00:02]} 25. Qe3 {[%emt 0:00:07]} e5 {[%emt 0:00:08]} 26. g5 {[%emt 0:00:32]} e4 {[%emt 0:03:04]} 27. gxf6+ {[%emt 0:00:10]} Kd7 {[%emt 0:00:31]} 28. Ne5+ {[%emt 0:00:06]} Kc8 {[%emt 0:00:13]} 29. Nxc4 {[%emt 0:00:06]} 1-0

[Event "Czech Open Rapid G1 2024"]
[Site "Pardubice"]
[Date "2024.07.18"]
[Round "6.22"]
[White "Filindash, Nikita"]
[Black "Ocelak, Jakub"]
[Result "0-1"]
[Annotator "RC"]
[ECO "D32"]
[WhiteElo "2007"]
[BlackElo "2206"]
[PlyCount "56"]
[EventDate "2024.07.16"]
[EventType "swiss"]
[EventCountry "CZE"]
[SourceTitle "playchess.com"]
[Source "ChessBase"]
[SourceQuality "1"]
[TimeControl "1200+10"]

1. d4 {[%emt 0:00:00]} d5 {[%emt 0:00:19]} 2. c4 {[%emt 0:00:02]} e6 {[%emt 0:00:02]} 3. Nc3 {[%emt 0:00:00]} c5 {[%emt 0:00:02]} 4. cxd5 {[%emt 0:00:02]} exd5 {[%emt 0:00:02]} 5. Nf3 {[%emt 0:00:05]} Nf6 {[%emt 0:00:02]} 6. Bg5 {[%emt 0:00:11]} Be6 {[%emt 0:00:10]} 7. e3 {[%emt 0:00:02]} c4 {[%emt 0:00:13]} 8. Be2 {[%emt 0:00:23]} Bb4 {[%emt 0:00:04]} 9. O-O {[%emt 0:00:05]} O-O {[%emt 0:00:37]} 10. Ne5 {[%emt 0:00:12]} Nbd7 {[%emt 0:01:02]} 11. f4 {[%emt 0:00:38]} Bxc3 {[%emt 0:00:13]} 12. bxc3 {[%emt 0:00:01]} Bf5 {[%emt 0:00:24]} 13. Bf3 {[%emt 0:00:39]} Qa5 {[%emt 0:01:20]} 14. Nxd7 {[%emt 0:00:50]} Nxd7 {[%emt 0:00:50]} 15. Bg4 {[%emt 0:00:04]} Bxg4 {[%emt 0:01:08]} 16. Qxg4 {[%emt 0:00:02]} f5 {[%emt 0:00:03]} 17. Qf3 {[%emt 0:00:43]} Rae8 {[%emt 0:00:44]} 18. Rf2 {[%emt 0:01:45]} Re4 {[%emt 0:01:27]} 19. Rc1 {[%emt 0:00:03]} Nb6 {[%emt 0:00:43]} 20. Rb2 {[%emt 0:00:53]} Rfe8 {[%emt 0:00:06]} 21. Kf2 {[%emt 0:00:04]} Na4 {[%emt 0:01:24]} 22. Rxb7 {[%emt 0:00:10]} Nxc3 {[%emt 0:00:15]} 23. Qh5 {[%emt 0:04:17]} Rf8 {[%emt 0:02:32]} 24. Be7 {[%emt 0:09:28]} Qxa2+ {[%emt 0:02:07]} 25. Kg1 {[%emt 0:00:06]} Qd2 {[%emt 0:02:28]} 26. h3 {[%emt 0:01:56]} Qxe3+ {[%emt 0:00:38]} 27. Kh2 {[%emt 0:00:09]} Qxf4+ {[%emt 0:00:04]} 28. g3 {[%emt 0:00:06]} Qd2+ {[%emt 0:00:02]} 0-1

[Event "Czech Open Rapid G1 2024"]
[Site "Pardubice"]
[Date "2024.07.18"]
[Round "6.23"]
[White "Vrana, Frantisek"]
[Black "Rous, Dominik"]
[Result "1-0"]
[Annotator "RC"]
[ECO "D02"]
[WhiteElo "2147"]
[BlackElo "1719"]
[PlyCount "87"]
[EventDate "2024.07.16"]
[EventType "swiss"]
[EventCountry "CZE"]
[SourceTitle "playchess.com"]
[Source "ChessBase"]
[SourceQuality "1"]
[TimeControl "1200+10"]

1. d4 {[%emt 0:00:07]} Nf6 {[%emt 0:00:28]} 2. Nf3 {[%emt 0:00:04]} d5 {[%emt 0:01:05]} 3. Bf4 {[%emt 0:00:09]} c5 {[%emt 0:01:15]} 4. c3 {[%emt 0:00:15]} Nc6 {[%emt 0:00:07]} 5. e3 {[%emt 0:01:28]} e6 {[%emt 0:01:53]} 6. Nbd2 {[%emt 0:00:34]} Qb6 {[%emt 0:00:54]} 7. Qb3 {[%emt 0:00:11]} c4 {[%emt 0:01:23]} 8. Qc2 {[%emt 0:00:10]} Be7 {[%emt 0:00:25]} 9. e4 {[%emt 0:00:12]} h6 {[%emt 0:01:01]} 10. h4 {[%emt 0:02:48]} a5 {[%emt 0:01:07]} 11. a4 {[%emt 0:01:01]} Bd7 {[%emt 0:03:43]} 12. e5 {[%emt 0:00:33]} Nh5 {[%emt 0:01:33]} 13. Bh2 {[%emt 0:00:25]} g6 {[%emt 0:00:22]} 14. Be2 {[%emt 0:01:32]} Ng7 {[%emt 0:00:34]} 15. Bf4 {[%emt 0:01:25]} Na7 {[%emt 0:03:47]} 16. Qc1 {[%emt 0:03:31]} Qc7 {[%emt 0:01:22]} 17. Nf1 {[%emt 0:00:15]} h5 {[%emt 0:00:20]} 18. Ne3 {[%emt 0:00:39]} Nf5 {[%emt 0:00:28]} 19. Nxf5 {[%emt 0:01:11]} exf5 {[%emt 0:00:04]} 20. e6 {[%emt 0:00:09]} Bd6 {[%emt 0:00:40]} 21. Bxd6 {[%emt 0:00:19]} Qxd6 {[%emt 0:00:01]} 22. exd7+ {[%emt 0:00:02]} Kxd7 {[%emt 0:00:09]} 23. Ne5+ {[%emt 0:00:36]} Ke8 {[%emt 0:00:14]} 24. O-O {[%emt 0:00:24]} Kf8 {[%emt 0:00:22]} 25. Re1 {[%emt 0:01:07]} Nc8 {[%emt 0:00:10]} 26. b3 {[%emt 0:01:06]} cxb3 {[%emt 0:00:25]} 27. Bb5 {[%emt 0:00:31]} Ne7 {[%emt 0:00:14]} 28. c4 {[%emt 0:00:27]} Kg7 {[%emt 0:00:13]} 29. c5 {[%emt 0:00:04]} Qf6 {[%emt 0:00:05]} 30. Qf4 {[%emt 0:00:09]} Nc8 {[%emt 0:00:28]} 31. Rab1 {[%emt 0:00:16]} Na7 {[%emt 0:00:07]} 32. Nd7 {[%emt 0:00:13]} Qd8 {[%emt 0:00:06]} 33. Qe5+ {[%emt 0:00:04]} Kh6 {[%emt 0:00:17]} 34. Qf4+ {[%emt 0:00:42]} Kg7 {[%emt 0:00:03]} 35. Nb6 {[%emt 0:00:23]} Rb8 {[%emt 0:00:04]} 36. Rxb3 {[%emt 0:00:02]} f6 {[%emt 0:00:27]} 37. Rbe3 {[%emt 0:00:24]} Rf8 {[%emt 0:00:04]} 38. Nd7 {[%emt 0:00:30]} Nxb5 {[%emt 0:00:08]} 39. Nxb8 {[%emt 0:00:02]} Nxd4 {[%emt 0:00:06]} 40. Re7+ {[%emt 0:00:11]} Rf7 {[%emt 0:00:03]} 41. Re8 {[%emt 0:00:04]} Qc7 {[%emt 0:00:27]} 42. Qxd4 {[%emt 0:00:03]} Kh6 {[%emt 0:00:11]} 43. Rh8+ {[%emt 0:00:08]} Kg7 {[%emt 0:00:02]} 44. Ree8 {[%emt 0:00:03]} 1-0

[Event "Czech Open Rapid G1 2024"]
[Site "Pardubice"]
[Date "2024.07.18"]
[Round "6.24"]
[White "Garsky, Vladyslav"]
[Black "Sichrovsky, Tomas"]
[Result "1-0"]
[Annotator "ChessBase"]
[ECO "B13"]
[WhiteElo "2137"]
[BlackElo "1933"]
[PlyCount "65"]
[EventDate "2024.07.16"]
[EventType "swiss"]
[EventCountry "CZE"]
[SourceTitle "playchess.com"]
[Source "ChessBase"]
[SourceQuality "1"]
[TimeControl "1200+10"]

1. e4 {[%emt 0:00:01]} c6 {[%emt 0:00:01]} 2. d4 {[%emt 0:00:01]} d5 {[%emt 0:00:01]} 3. exd5 cxd5 {[%emt 0:00:01]} 4. Bd3 {[%emt 0:00:03]} Nc6 5. c3 {[%emt 0:00:02]} Nf6 {[%emt 0:00:03]} 6. Nf3 {[%emt 0:00:00]} g6 {[%emt 0:21:01]} 7. h3 {[%emt 0:00:36]} Bf5 {[%emt 0:00:00]} 8. O-O {[%emt 0:00:05]} Bg7 {[%emt 0:00:00]} 9. Bf4 {[%emt 0:00:04]} O-O {[%emt 0:00:00]} 10. Re1 {[%emt 0:00:02]} Bxd3 {[%emt 0:00:00]} 11. Qxd3 {[%emt 0:00:01]} a6 {[%emt 0:00:00]} 12. Nbd2 {[%emt 0:00:05]} b5 {[%emt 0:00:00]} 13. a3 {[%emt 0:00:03]} Na5 {[%emt 0:00:00]} 14. b4 {[%emt 0:01:43]} Nc4 {[%emt 0:00:15]} 15. Nb3 {[%emt 0:00:01]} e6 {[%emt 0:00:00]} 16. Nc5 {[%emt 0:00:20]} Qb6 {[%emt 0:00:00]} 17. Ne5 {[%emt 0:00:36]} Ra7 {[%emt 0:00:00]} 18. a4 {[%emt 0:02:16]} Nb2 {[%emt 0:00:00]} 19. Qc2 {[%emt 0:00:02]} Nxa4 {[%emt 0:00:00]} 20. Nxa4 {[%emt 0:00:05]} bxa4 {[%emt 0:00:01]} 21. Rxa4 {[%emt 0:00:05]} Rc8 {[%emt 0:00:00]} 22. Nd3 {[%emt 0:00:51]} Rc4 {[%emt 0:00:00]} 23. Ne5 {[%emt 0:00:31]} Rc8 {[%emt 0:00:00]} 24. Nd3 {[%emt 0:00:01]} Rc4 {[%emt 0:00:07]} 25. Nc5 {[%emt 0:00:03]} Ne4 {[%emt 0:00:00]} 26. Rxe4 {[%emt 0:00:22]} dxe4 {[%emt 0:00:00]} 27. Qb3 {[%emt 0:00:07]} Rxc5 {[%emt 0:01:28]} 28. dxc5 Qd8 {[%emt 0:00:00]} 29. b5 {[%emt 0:00:44]} e5 {[%emt 0:00:00]} 30. Be3 {[%emt 0:00:08]} Rd7 {[%emt 0:00:00]} 31. b6 {[%emt 0:01:39]} Rd3 {[%emt 0:00:00]} 32. b7 {[%emt 0:00:25]} Rxe3 {[%emt 0:00:00]} 33. b8=Q {[%emt 0:00:17]} 1-0

[Event "Czech Open Rapid G1 2024"]
[Site "Pardubice"]
[Date "2024.07.18"]
[Round "6.25"]
[White "Mica, Marek"]
[Black "Stocek, Martin"]
[Result "1-0"]
[Annotator "TA"]
[ECO "D00"]
[WhiteElo "2375"]
[BlackElo "2110"]
[PlyCount "81"]
[EventDate "2024.07.16"]
[EventType "swiss"]
[EventCountry "CZE"]
[SourceTitle "playchess.com"]
[Source "ChessBase"]
[SourceQuality "1"]
[TimeControl "1200+10"]

{[%evp 9,81,0,0,5,16,-67,-75,-95,-87,-106,-91,-91,-107,-107,-89,-98,-85,-97,-97,-76,-52,-55,-39,-61,-61,-76,-67,-76,-75,-65,-51,-72,-64,-73,-53,-69,-58,-83,-80,-72,-50,-51,0,-40,0,-54,-27,-17,-12,-24,0,-8,-7,-14,-9,-2,0,0,0,0,366,355,471,457,406,282,273,254,864,834,1197,1139,29973,29968]} 1. a3 {[%emt 0:00:05]} d5 {[%emt 0:00:03]} 2. d4 {[%emt 0:00:01]} Nf6 {[%emt 0:00:05]} 3. Nf3 {[%emt 0:00:02]} Bg4 {[%emt 0:00:11]} 4. Ne5 {[%emt 0:00:30]} Bh5 {[%emt 0:00:03]} 5. Bf4 {[%emt 0:00:23]} e6 {[%emt 0:00:10]} 6. f3 {[%emt 0:00:08]} Nfd7 {[%emt 0:01:02]} 7. g4 {[%emt 0:00:34]} (7. Nc3 $11) 7... Nxe5 $15 {[%emt 0:00:53]} 8. dxe5 {[%emt 0:00:19] Black is better.} Bg6 {[%emt 0:00:03]} 9. h4 {[%emt 0:00:05] [#] Threatens to win with h5.} h5 {[%emt 0:00:15] ...hxg4 is the strong threat.} 10. g5 {[%emt 0:00:02][%cal Oe2e4]} c6 {[%emt 0:00:47]} 11. e3 {[%emt 0:00:04]} Qb6 {[%emt 0:00:17]} 12. b3 {[%emt 0:00:09]} Bc5 {[%emt 0:01:21]} 13. Kf2 {[%emt 0:00:01]} O-O {[%emt 0:00:06]} 14. Bd3 {[%emt 0:00:03]} Bxd3 {[%emt 0:00:15]} 15. cxd3 {[%emt 0:00:07]} g6 {[%emt 0:00:07]} 16. Nd2 {[%emt 0:00:36]} Nd7 {[%emt 0:00:10]} 17. Qc2 {[%emt 0:00:40]} Be7 {[%emt 0:00:47]} 18. Bg3 {[%emt 0:00:46]} Rac8 {[%emt 0:00:34]} 19. f4 {[%emt 0:00:07]} Rfd8 {[%emt 0:00:41]} 20. Rhd1 {[%emt 0:00:19]} c5 {[%emt 0:00:47]} 21. Kf3 {[%emt 0:00:18]} Qc6 {[%emt 0:02:13]} 22. Be1 {[%emt 0:00:07]} b5 {[%emt 0:00:14]} 23. Nf1 {[%emt 0:00:17]} c4 {[%emt 0:00:51]} 24. d4 {[%emt 0:00:06] Dodges Nc5} cxb3 {[%emt 0:01:56]} 25. Qxb3 {[%emt 0:00:01]} Qc4 {[%emt 0:00:02]} ({Black should play} 25... Nb6 $15) 26. Qd3 {[%emt 0:00:19]} a6 {[%emt 0:01:30]} 27. Ng3 {[%emt 0:00:13]} ({White should try} 27. Ba5 $11) 27... Qxd3 {[%emt 0:00:08]} (27... Qc7 {feels hotter.} 28. Nf1 Nb6 29. Ba5 Re8) 28. Rxd3 {[%emt 0:00:02]} Rc4 {[%emt 0:00:30]} 29. Ne2 {[%emt 0:00:21][%cal Bg3e2,Be2f4,Bf4d3][%mdl 32]} Rdc8 {[%emt 0:00:07]} 30. Rb3 {[%emt 0:00:22]} Nb6 {[%emt 0:00:09]} 31. Ba5 {[%emt 0:00:12]} Na4 {[%emt 0:00:27]} 32. f5 {[%emt 0:01:17]} exf5 {[%emt 0:03:30]} 33. Nf4 {[%emt 0:00:06]} Bd8 {[%emt 0:00:03]} 34. Bb4 {[%emt 0:00:49]} (34. Bxd8 Rxd8 35. Rh1 Nc3 $17) 34... a5 $2 {[%emt 0:00:32][%mdl 8192]} (34... Nb6 $1 $11 {and Black is okay.}) 35. Be1 $18 {[%emt 0:00:07]} Rc1 {[%emt 0:00:49]} 36. Rxc1 {[%emt 0:00:01]} Rxc1 {[%emt 0:00:01]} 37. Nd3 {[%emt 0:00:40]} Ra1 {[%emt 0:00:26]} 38. Rxb5 {[%emt 0:00:06] [#] Hoping for Rb8.} Rxa3 $2 {[%emt 0:00:29]} (38... Bb6 39. Bxa5 (39. Rxd5 Rxa3 40. Nc5 Nxc5 $18) 39... Bxa5) 39. Nf4 {[%emt 0:00:10]} ({Less strong is} 39. Bxa5 Bxa5 40. Rxa5 Rxd3 $11) 39... Nc3 {[%emt 0:03:09]} 40. Bxc3 {[%emt 0:00:06][%cal Ob5b8] White threatens Rb8! and mate.} Rxc3 {[%emt 0:00:01]} 41. Rb8 {[%emt 0:00:02] Weighted Error Value: White=0.19 (very precise) /Black=0.40.  Loses game:     	---       	Black=1      Mistake:       	White=2     	Black=2      Inaccurate:     	White=2     	Black=4      OK:         	White=13    	Black=12     Best:        	White=1     	Black=1} (41. Nxd5 Rc8 $18) 1-0

[Event "Czech Open Rapid G1 2024"]
[Site "Pardubice"]
[Date "2024.07.18"]
[Round "6.26"]
[White "Setina, Vaclav"]
[Black "Krak, Tomas"]
[Result "1/2-1/2"]
[Annotator "RC"]
[ECO "B22"]
[WhiteElo "1984"]
[BlackElo "2229"]
[PlyCount "99"]
[EventDate "2024.07.16"]
[EventType "swiss"]
[EventCountry "CZE"]
[SourceTitle "playchess.com"]
[Source "ChessBase"]
[SourceQuality "1"]
[TimeControl "1200+10"]

1. e4 {[%emt 0:00:03]} c5 {[%emt 0:00:01]} 2. c3 {[%emt 0:00:08]} e6 {[%emt 0:00:04]} 3. d4 {[%emt 0:00:02]} d5 {[%emt 0:00:01]} 4. exd5 {[%emt 0:00:36]} exd5 {[%emt 0:00:02]} 5. Nf3 {[%emt 0:00:00]} a6 {[%emt 0:00:01]} 6. Be2 {[%emt 0:00:03]} Nf6 {[%emt 0:00:05]} 7. Bg5 {[%emt 0:00:10]} Be6 {[%emt 0:00:57]} 8. Nbd2 {[%emt 0:00:31]} Nc6 {[%emt 0:00:03]} 9. O-O {[%emt 0:00:34]} h6 {[%emt 0:00:14]} 10. Bh4 {[%emt 0:00:13]} Be7 {[%emt 0:00:50]} 11. dxc5 {[%emt 0:00:08]} Bxc5 {[%emt 0:00:01]} 12. Nb3 {[%emt 0:00:02]} Ba7 {[%emt 0:00:01]} 13. Nbd4 {[%emt 0:00:34]} O-O {[%emt 0:00:04]} 14. Bd3 {[%emt 0:01:05]} Bg4 {[%emt 0:06:40]} 15. Bc2 {[%emt 0:01:34]} g5 {[%emt 0:00:35]} 16. Bg3 {[%emt 0:00:20]} Ne4 {[%emt 0:00:03]} 17. Nxc6 {[%emt 0:00:43]} bxc6 {[%emt 0:00:04]} 18. Bxe4 {[%emt 0:00:03]} dxe4 {[%emt 0:00:04]} 19. Qxd8 {[%emt 0:00:03]} Rfxd8 {[%emt 0:00:46]} 20. Ne5 {[%emt 0:00:01]} Be2 {[%emt 0:01:15]} 21. Nxc6 {[%emt 0:02:33]} Rd2 {[%emt 0:00:22]} 22. Rfc1 {[%emt 0:00:19]} Rxb2 {[%emt 0:00:43]} 23. Nxa7 {[%emt 0:00:06]} Rxa7 {[%emt 0:00:03]} 24. c4 {[%emt 0:01:42]} Rb6 {[%emt 0:01:26]} 25. c5 {[%emt 0:00:00]} Rc6 {[%emt 0:00:02]} 26. Rab1 {[%emt 0:00:00]} f5 {[%emt 0:03:05]} 27. Rb6 {[%emt 0:00:07]} Bb5 {[%emt 0:00:09]} 28. Bd6 {[%emt 0:01:13]} Rd7 {[%emt 0:00:28]} 29. Rxc6 {[%emt 0:00:43]} Bxc6 {[%emt 0:00:03]} 30. Rb1 {[%emt 0:00:22]} Rb7 {[%emt 0:01:16]} 31. Rb6 {[%emt 0:01:35]} Rxb6 {[%emt 0:00:37]} 32. cxb6 {[%emt 0:00:02]} Kf7 {[%emt 0:00:01]} 33. g3 {[%emt 0:02:24]} h5 {[%emt 0:01:16]} 34. h4 {[%emt 0:00:42]} Ke6 {[%emt 0:00:18]} 35. Bb4 {[%emt 0:00:31]} gxh4 {[%emt 0:00:37]} 36. gxh4 {[%emt 0:00:01]} f4 {[%emt 0:00:21]} 37. Kf1 {[%emt 0:01:26]} Kd5 {[%emt 0:00:27]} 38. f3 {[%emt 0:01:12]} exf3 {[%emt 0:01:44]} 39. Kf2 {[%emt 0:00:12]} Kc4 {[%emt 0:00:07]} 40. Bd6 {[%emt 0:00:01]} Kb5 {[%emt 0:00:04]} 41. Bc7 {[%emt 0:00:04]} Kb4 {[%emt 0:00:06]} 42. Bd6+ {[%emt 0:00:04]} Ka5 {[%emt 0:00:11]} 43. Bc7 {[%emt 0:00:10]} Ka4 {[%emt 0:00:01]} 44. Bd6 {[%emt 0:00:01]} Bb7 {[%emt 0:00:13]} 45. a3 {[%emt 0:00:58]} Kb5 {[%emt 0:00:15]} 46. Bc7 {[%emt 0:00:02]} a5 {[%emt 0:00:17]} 47. Bd8 {[%emt 0:00:04]} Kc5 {[%emt 0:00:11]} 48. Bc7 {[%emt 0:00:11]} a4 {[%emt 0:00:06]} 49. Bd8 {[%emt 0:00:02]} Kd5 {[%emt 0:00:08]} 50. Kxf3 {[%emt 0:00:42]} 1/2-1/2

[Event "Czech Open Rapid G1 2024"]
[Site "Pardubice"]
[Date "2024.07.18"]
[Round "6.27"]
[White "Ret, Adam Josef"]
[Black "Levytskyi, Liubomyr"]
[Result "1/2-1/2"]
[Annotator "RC"]
[ECO "A20"]
[WhiteElo "2085"]
[BlackElo "1717"]
[PlyCount "127"]
[EventDate "2024.07.16"]
[EventType "swiss"]
[EventCountry "CZE"]
[SourceTitle "playchess.com"]
[Source "ChessBase"]
[SourceQuality "1"]
[TimeControl "1200+10"]

1. c4 {[%emt 0:00:01]} e5 {[%emt 0:00:06]} 2. g3 {[%emt 0:00:01]} c6 {[%emt 0:00:01]} 3. Bg2 {[%emt 0:00:01]} d5 {[%emt 0:00:01]} 4. d4 {[%emt 0:00:02]} e4 {[%emt 0:00:08]} 5. Nc3 {[%emt 0:00:15]} Bb4 {[%emt 0:00:01]} 6. Qb3 {[%emt 0:00:08]} Bxc3+ {[%emt 0:00:20]} 7. bxc3 {[%emt 0:00:09]} Nf6 {[%emt 0:00:06]} 8. Ba3 {[%emt 0:00:11]} Qb6 {[%emt 0:00:29]} 9. cxd5 {[%emt 0:00:35]} Qxb3 {[%emt 0:00:28]} 10. axb3 {[%emt 0:00:03]} cxd5 {[%emt 0:00:01]} 11. e3 {[%emt 0:01:13]} Nc6 {[%emt 0:01:28]} 12. Kd2 {[%emt 0:00:18]} Be6 {[%emt 0:00:23]} 13. Ne2 {[%emt 0:00:19]} Ng4 {[%emt 0:01:48]} 14. Raf1 {[%emt 0:00:21]} Kd7 {[%emt 0:00:05]} 15. f3 {[%emt 0:01:21]} exf3 {[%emt 0:01:42]} 16. Bxf3 {[%emt 0:00:06]} h5 {[%emt 0:03:13]} 17. Nf4 {[%emt 0:00:36]} Nf6 {[%emt 0:00:24]} 18. c4 {[%emt 0:00:21]} Na5 {[%emt 0:02:11]} 19. cxd5 {[%emt 0:01:32]} Bf5 {[%emt 0:00:13]} 20. Bb4 {[%emt 0:00:19]} Nxb3+ {[%emt 0:00:54]} 21. Kc3 {[%emt 0:00:29]} a5 {[%emt 0:00:11]} 22. Kxb3 {[%emt 0:01:12]} axb4 {[%emt 0:00:02]} 23. Ra1 {[%emt 0:01:05]} Kd6 {[%emt 0:02:54]} 24. Kxb4 {[%emt 0:02:00]} h4 {[%emt 0:01:31]} 25. Rxa8 {[%emt 0:01:39]} Rxa8 {[%emt 0:00:01]} 26. gxh4 {[%emt 0:00:02]} Re8 {[%emt 0:01:01]} 27. Re1 {[%emt 0:01:04]} Be4 {[%emt 0:00:12]} 28. Bxe4 {[%emt 0:00:23]} Rxe4 {[%emt 0:00:05]} 29. Kc4 {[%emt 0:01:03]} Nxd5 {[%emt 0:02:12]} 30. Nxd5 {[%emt 0:01:23]} b5+ {[%emt 0:00:01]} 31. Kd3 {[%emt 0:00:05]} Kxd5 {[%emt 0:00:01]} 32. Rb1 {[%emt 0:03:06]} Rxh4 {[%emt 0:01:17]} 33. Rxb5+ {[%emt 0:00:04]} Ke6 {[%emt 0:00:25]} 34. Rb2 {[%emt 0:01:24]} f5 {[%emt 0:00:31]} 35. Rg2 {[%emt 0:00:10]} Kf6 {[%emt 0:00:19]} 36. Re2 {[%emt 0:00:37]} Ke6 {[%emt 0:00:28]} 37. Kc4 {[%emt 0:00:18]} Re4 {[%emt 0:00:26]} 38. Kc5 {[%emt 0:00:19]} f4 {[%emt 0:00:14]} 39. d5+ {[%emt 0:00:01]} Kd7 {[%emt 0:00:22]} 40. Rg2 {[%emt 0:00:48]} fxe3 {[%emt 0:00:14]} 41. Rxg7+ {[%emt 0:00:08]} Re7 {[%emt 0:00:09]} 42. Rg1 {[%emt 0:00:12]} e2 {[%emt 0:00:13]} 43. Re1 {[%emt 0:00:02]} Re4 {[%emt 0:00:06]} 44. h4 {[%emt 0:00:09]} Rxh4 {[%emt 0:00:20]} 45. Rxe2 {[%emt 0:00:02]} Rh6 {[%emt 0:00:07]} 46. Rg2 {[%emt 0:00:26]} Kc7 {[%emt 0:00:14]} 47. Rg7+ {[%emt 0:00:27]} Kd8 {[%emt 0:00:06]} 48. Rf7 {[%emt 0:00:28]} Rg6 {[%emt 0:00:06]} 49. Kd4 {[%emt 0:00:10]} Ke8 {[%emt 0:00:03]} 50. Rh7 {[%emt 0:00:18]} Ra6 {[%emt 0:00:09]} 51. Ke5 {[%emt 0:00:14]} Kd8 {[%emt 0:00:16]} 52. Rf7 {[%emt 0:00:30]} Rb6 {[%emt 0:00:08]} 53. Rf6 {[%emt 0:00:26]} Rxf6 {[%emt 0:00:11]} 54. Kxf6 {[%emt 0:00:01]} Kd7 {[%emt 0:00:01]} 55. Kf5 {[%emt 0:00:08]} Kd6 {[%emt 0:00:02]} 56. Ke4 {[%emt 0:00:01]} Kd7 {[%emt 0:00:01]} 57. Kd3 {[%emt 0:00:05]} Kd6 {[%emt 0:00:04]} 58. Kd4 {[%emt 0:00:02]} Kd7 {[%emt 0:00:00]} 59. Kc5 {[%emt 0:00:04]} Kc7 {[%emt 0:00:01]} 60. d6+ {[%emt 0:00:01]} Kd7 {[%emt 0:00:01]} 61. Kd5 {[%emt 0:00:01]} Kd8 {[%emt 0:00:06]} 62. Kc6 {[%emt 0:00:04]} Kc8 {[%emt 0:00:00]} 63. d7+ {[%emt 0:00:01]} Kd8 {[%emt 0:00:01]} 64. Kd6 {[%emt 0:00:00]} 1/2-1/2